bitfinex-derivatives/quotes_SOLF0:USTF0_20241127
["timestamp","ask_amount","ask_price","bid_price","bid_amount"]
[1732672153890,2.26,231.62,231.58,10.7345421]
[1732672154087,2.26,231.63,231.58,10.7345421]
[1732672154297,2.26,231.63,231.6,2.1596]
[1732672154687,2.26,231.63,231.58,10.7345421]
[1732672155699,2.26,231.63,231.62,2.1594]
[1732672157601,2.26,231.65,231.62,2.1594]
[1732672158303,2.26,231.65,231.61,10.7345421]
[1732672158304,2.26,231.65,231.64,2.1592]
[1732672160201,2.26,231.69,231.64,10.7345421]
[1732672160407,10.7345421,231.8,231.67,10.7345421]
[1732672160605,2.26,231.74,231.67,10.7345421]
[1732672162099,2.26,231.74,231.68,2.1588]
[1732672162303,2.26,231.74,231.67,10.7345421]
[1732672162907,2.26,231.74,231.61,7.6458]
[1732672162908,2.26,231.74,231.61,18.3803421]
[1732672163201,2.1591,231.65,231.58,2.1598]
[1732672163399,2.26,231.64,231.58,2.1598]
[1732672163601,2.26,231.63,231.52,10.7345421]
[1732672163807,2.26,231.62,231.56,2.1599]
[1732672164008,2.26,231.62,231.52,10.7345421]
[1732672164204,2.26,231.62,231.53,1.08050496]
[1732672164500,2.26,231.62,231.58,2.1598]
[1732672165103,2.26,231.62,231.6,2.1596]
[1732672165306,2.26,231.62,231.55,10.7345421]
[1732672165709,2.26,231.62,231.6,2.1596]
[1732672166008,2.26,231.65,231.55,10.7345421]
[1732672166207,2.26,231.65,231.6,2.1596]
[1732672166409,2.26,231.65,231.55,10.7345421]
[1732672166606,2.26,231.65,231.56,1.08039013]
[1732672166803,2.26,231.65,231.57,1.08039013]
[1732672167003,2.26,231.65,231.55,10.7345421]
[1732672167204,2.26,231.65,231.56,1.08037527]
[1732672167411,2.26,231.65,231.55,10.7345421]
[1732672168007,2.26,231.65,231.6,2.1595]
[1732672168412,2.26,231.65,231.58,10.7345421]
[1732672168605,10.7345421,231.75,231.61,10.7345421]
[1732672168908,2.26,231.72,231.61,10.7345421]
[1732672170007,2.1586,231.71,231.65,2.1591]
[1732672170209,2.26,231.72,231.65,2.1591]
[1732672170402,2.26,231.72,231.61,10.7345421]
[1732672171110,2.26,231.72,231.64,10.7345421]
[1732672172112,2.26,231.72,231.67,2.1589]
[1732672172510,2.26,231.72,231.61,10.7345421]
[1732672172816,2.26,231.72,231.64,2.1592]
[1732672173009,2.26,231.72,231.59,2.6428]
[1732672173511,12.9945421,231.72,231.58,10.7345421]
[1732672174016,2.26,231.71,231.58,10.7345421]
[1732672174713,2.26,231.71,231.61,10.7345421]
[1732672175720,2.26,231.71,231.66,2.159]
[1732672176016,2.26,231.7,231.66,2.159]
[1732672176215,2.26,231.7,231.61,10.7345421]
[1732672176816,2.26,231.7,231.66,2.159]
[1732672177209,2.26,231.7,231.61,10.7345421]
[1732672178018,2.26,231.7,231.63,2.1593]
[1732672178216,2.26,231.7,231.61,10.7345421]
[1732672179216,2.26,231.7,231.62,1.08011418]
[1732672179416,2.26,231.7,231.61,10.7345421]
[1732672179621,2.26,231.7,231.64,2.1592]
[1732672179824,2.26,231.7,231.61,10.7345421]
[1732672180121,2.26,231.7,231.62,1.08010157]
[1732672180322,2.26,231.7,231.61,10.7345421]
[1732672180517,2.26,231.7,231.62,1.08010885]
[1732672180718,2.26,231.7,231.61,10.7345421]
[1732672180918,2.26,231.7,231.62,1.08010247]
[1732672181223,2.26,231.7,231.66,2.159]
[1732672183524,2.4142,231.82,231.64,10.7345421]
[1732672183725,2.26,231.75,231.64,10.7345421]
[1732672184125,2.26,231.75,231.68,2.1588]
[1732672184520,10.7345421,231.73,231.61,5.0813]
[1732672184721,10.7345421,231.7,231.56,4.05045122]
[1732672184922,2.26,231.69,231.56,4.05045122]
[1732672185122,2.1593,231.63,231.55,2.16]
[1732672185320,2.26,231.62,231.52,4.21010732]
[1732672185526,2.26,231.61,231.52,4.21010732]
[1732672186226,4.4196,231.61,231.54,2.1602]
[1732672186530,2.26,231.61,231.52,4.21010732]
[1732672187032,2.26,231.61,231.53,2.1602]
[1732672187527,2.26,231.61,231.49,10.7345421]
[1732672188222,10.7345421,231.58,231.46,10.7345421]
[1732672188423,19.47387658,231.61,231.47,1.08070227]
[1732672188629,2.6407,231.57,231.42,17.41309658]
[1732672188830,2.1601,231.55,231.43,2.81042389]
[1732672189023,2.1601,231.55,231.44,1.08093226]
[1732672189231,2.26,231.56,231.46,2.1609]
[1732672189232,2.1602,231.54,231.46,2.1609]
[1732672190131,4.7721,231.56,231.48,2.1606]
[1732672190427,4.7721,231.56,231.46,17.21387658]
[1732672190825,2.26,231.56,231.46,17.21387658]
[1732672191227,2.26,231.56,231.53,2.1602]
[1732672191933,2.26,231.56,231.5,17.21387658]
[1732672192427,2.26,231.56,231.51,1.08063311]
[1732672192634,2.26,231.56,231.55,2.1601]
[1732672196431,2.26,231.61,231.5,17.21387658]
[1732672196641,5.2889,231.64,231.51,2.80925512]
[1732672196833,2.26,231.63,231.54,17.21387658]
[1732672197034,2.26,231.62,231.55,1.08051618]
[1732672197230,2.26,231.63,231.62,2.1594]
[1732672198436,2.26,231.63,231.54,19.37219574]
[1732672199341,2.26,231.63,231.61,2.1595]
[1732672200647,5.1337,231.72,231.65,2.1591]
[1732672200943,2.26,231.7,231.58,17.21387658]
[1732672201140,2.26,231.7,231.58,19.4119215]
[1732672201445,2.26,231.7,231.65,2.1591]
[1732672202736,2.26,231.7,231.62,17.21387658]
[1732672203247,2.26,231.7,231.64,2.1592]
[1732672203446,2.26,231.7,231.62,17.21387658]
[1732672203844,2.1584,231.74,231.67,2.1589]
[1732672204047,2.26,231.73,231.62,17.21387658]
[1732672204945,2.26,231.73,231.69,2.1587]
[1732672205648,2.26,231.73,231.62,17.21387658]
[1732672205649,2.26,231.73,231.7,2.1587]
[1732672206047,2.26,231.73,231.62,17.21387658]
[1732672207447,2.26,231.73,231.65,2.1591]
[1732672207742,2.26,231.73,231.62,17.21387658]
[1732672208242,2.26,231.73,231.69,2.1587]
[1732672208645,5.1256,231.8,231.71,2.1585]
[1732672208846,5.1256,231.8,231.7,10.73936699]
[1732672209050,10.73936699,231.93,231.76,10.73936699]
[1732672209249,2.24,231.91,231.8,10.73936699]
[1732672209444,2.24,231.9,231.83,10.73936699]
[1732672209751,2.24,231.9,231.83,12.89129065]
[1732672209952,2.24,231.9,231.83,10.73936699]
[1732672210148,2.24,231.9,231.8,10.73936699]
[1732672210546,2.24,231.9,231.83,2.1574]
[1732672210745,2.24,231.9,231.83,10.73936699]
[1732672211145,2.24,231.9,231.87,2.1571]
[1732672211551,2.24,231.9,231.83,10.73936699]
[1732672212249,2.24,231.9,231.8,17.1568642]
[1732672212553,2.24,231.9,231.76,17.1568642]
[1732672212747,2.24,231.9,231.8,17.1568642]
[1732672213149,2.24,231.9,231.88,2.157]
[1732672214157,298.54908162,231.95,231.9,2.1568]
[1732672214350,2.24,231.93,231.9,2.1568]
[1732672216045,2.24,231.93,231.84,17.1568642]
[1732672216252,2.24,231.93,231.91,2.1566]
[1732672217752,7.5974,232.01,231.85,2.190857]
[1732672217954,4.9913,232.01,231.88,17.1568642]
[1732672218151,2.24,232.0,231.88,17.1568642]
[1732672218958,2.24,232.0,231.93,17.1568642]
[1732672219459,2.24,232.0,231.96,2.1562]
[1732672220452,2.5286,232.06,231.98,2.156]
[1732672220657,2.24,232.05,231.93,17.1568642]
[1732672220955,2.24,232.05,231.97,17.1568642]
[1732672221162,2.24,232.06,231.97,19.2758623]
[1732672221360,2.24,232.06,232.03,2.1556]
[1732672221758,2.24,232.07,231.97,17.1568642]
[1732672221960,2.24,232.07,232.01,2.1557]
[1732672222161,4.6004,232.1,231.97,19.31728437]
[1732672222356,2.24,232.09,231.97,19.31728437]
[1732672224470,2.24,232.09,232.06,2.1553]
[1732672224668,2.24,232.09,231.97,19.31728437]
[1732672225266,2.24,232.09,232.06,2.1553]
[1732672225464,0.31199,232.12,232.05,17.1568642]
[1732672225660,0.31199,232.12,232.09,17.1568642]
[1732672225863,0.31199,232.12,232.1,2.1549]
[1732672227066,2.24,232.26,232.11,2.24]
[1732672227370,2.24,232.26,232.18,17.1568642]
[1732672227569,2.24,232.26,232.2,2.154]
[1732672227776,2.24,232.26,232.18,17.1568642]
[1732672229068,4.3935,232.26,232.18,17.1568642]
[1732672229271,2.24,232.26,232.19,2.1541]
[1732672229660,2.24,232.26,232.1,7.5958]
[1732672229862,2.24,232.26,232.14,17.1568642]
[1732672230562,2.24,232.26,232.19,2.1541]
[1732672233273,2.24,232.26,232.18,17.1568642]
[1732672233470,2.24,232.26,232.14,17.1568642]
[1732672233670,2.24,232.26,232.1,17.1568642]
[1732672233867,2.1541,232.19,232.12,2.1548]
[1732672234067,2.24,232.18,232.06,17.1568642]
[1732672234371,2.24,232.17,232.06,17.1568642]
[1732672234571,2.24,232.16,232.06,17.1568642]
[1732672234874,2.24,232.15,232.06,17.1568642]
[1732672235071,2.24,232.14,232.06,17.1568642]
[1732672235272,2.24,232.13,232.06,17.1568642]
[1732672235467,2.24,232.13,232.01,24.8253642]
[1732672235871,2.24,232.13,232.01,17.1568642]
[1732672236073,2.6163,232.12,231.97,17.1568642]
[1732672236878,2.6163,232.12,231.93,24.8465642]
[1732672237077,2.6163,232.12,231.93,17.1568642]
[1732672237273,2.1553,232.07,231.96,2.1562]
[1732672237578,2.24,232.06,231.93,17.1568642]
[1732672237973,2.1554,232.05,231.93,17.1568642]
[1732672238181,2.24,232.04,231.97,17.1568642]
[1732672238382,2.24,232.03,231.97,17.1568642]
[1732672238585,2.24,232.05,232.01,17.1568642]
[1732672238772,2.24,232.05,232.01,19.3125642]
[1732672239177,2.24,232.05,231.97,17.1568642]
[1732672239376,4.3954,232.05,231.97,17.1568642]
[1732672239576,2.24,232.05,231.97,17.1568642]
[1732672241078,2.24,232.05,232.02,2.1557]
[1732672242380,2.24,232.07,232.01,17.1568642]
[1732672242687,2.24,232.08,232.02,1.07836191]
[1732672242984,2.24,232.08,232.07,2.1552]
[1732672243185,2.24,232.08,232.01,17.1568642]
[1732672243481,2.24,232.08,232.06,2.1553]
[1732672244186,2.24,232.08,232.01,17.1568642]
[1732672244389,2.24,232.08,232.02,1.07830773]
[1732672244583,2.24,232.08,231.97,17.1568642]
[1732672244783,2.24,232.08,231.98,2.80394734]
[1732672245088,2.24,232.08,231.93,3.95616213]
[1732672245089,2.24,232.08,231.99,2.80394734]
[1732672245278,2.24,232.08,232.0,1.07844128]
[1732672245479,17.1568642,232.06,231.9,6.43206761]
[1732672245680,17.1568642,232.06,231.91,2.80434619]
[1732672245884,17.1568642,232.02,231.92,2.80434619]
[1732672246081,9.7591,232.01,231.93,1.07859469]
[1732672246288,17.1568642,231.98,231.82,2.47723467]
[1732672246587,17.1568642,231.98,231.83,1.72620334]
[1732672246793,17.1568642,231.98,231.84,1.72620334]
[1732672246985,2.1567,231.91,231.85,1.72620334]
[1732672247185,2.24,231.9,231.79,5.76217361]
[1732672247391,2.24,231.89,231.8,1.72683573]
[1732672247591,2.24,231.89,231.84,2.1573]
[1732672247790,2.24,231.89,231.79,5.76217361]
[1732672247989,2.1571,231.87,231.79,5.76217361]
[1732672248295,2.24,231.89,231.79,5.76217361]
[1732672248700,2.1572,231.86,231.79,5.76217361]
[1732672248993,2.24,231.89,231.79,5.76217361]
[1732672249495,5.0607,231.9,231.79,5.76217361]
[1732672249693,2.24,231.88,231.79,5.76217361]
[1732672251496,2.6562,231.87,231.79,5.76217361]
[1732672251893,2.6562,231.87,231.79,7.91997361]
[1732672252089,2.6562,231.87,231.79,5.76217361]
[1732672252290,2.24,231.88,231.79,5.76217361]
[1732672253391,2.24,231.87,231.79,5.76217361]
[1732672253595,2.24,231.87,231.84,2.1573]
[1732672254198,2.24,231.87,231.85,2.1573]
[1732672255298,2.24,231.87,231.83,2.1574]
[1732672255502,2.24,231.87,231.79,5.76217361]
[1732672255802,2.24,231.87,231.78,17.19428371]
[1732672255803,2.24,231.87,231.77,17.1568642]
[1732672255999,2.24,231.87,231.78,2.49272823]
[1732672256299,2.24,231.87,231.77,17.1568642]
[1732672257097,2.24,231.87,231.84,2.1573]
[1732672258399,2.6562,231.95,231.81,17.1568642]
[1732672258601,2.24,231.94,231.81,17.1568642]
[1732672258998,2.24,231.94,231.87,2.157]
[1732672259502,2.24,231.94,231.85,17.1568642]
[1732672260202,2.1565,231.93,231.86,2.1571]
[1732672260603,2.24,231.94,231.86,2.1571]
[1732672261306,2.24,231.94,231.81,2.5091]
[1732672261697,2.24,231.94,231.72,2.4114]
[1732672261698,2.157,231.88,231.8,2.1577]
[1732672261901,2.24,231.87,231.73,17.1568642]
[1732672262105,2.24,231.86,231.73,17.1568642]
[1732672262300,2.24,231.86,231.77,17.1568642]
[1732672262507,2.24,231.86,231.81,17.1568642]
[1732672262807,2.24,231.86,231.77,17.1568642]
[1732672263308,2.24,231.86,231.82,2.1575]
[1732672263708,2.24,231.86,231.83,2.1574]
[1732672264508,2.24,231.86,231.79,2.1578]
[1732672265405,2.24,231.86,231.8,2.1577]
[1732672265600,2.24,231.86,231.76,17.1568642]
[1732672266007,2.24,231.86,231.81,2.1576]
[1732672266404,4.9397,231.99,231.8,19.30184451]
[1732672266704,2.24,231.98,231.84,17.1568642]
[1732672267303,2.24,231.98,231.81,5.2133]
[1732672267499,2.24,231.98,231.8,17.1568642]
[1732672267706,17.1568642,231.96,231.76,17.1568642]
[1732672268106,2.24,231.98,231.8,17.1568642]
[1732672268303,2.1566,231.93,231.85,2.1573]
[1732672268508,2.24,231.92,231.8,17.1568642]
[1732672268704,2.24,231.94,231.88,17.1568642]
[1732672268910,2.24,231.93,231.88,19.3137642]
[1732672269104,2.24,231.93,231.84,17.1568642]
[1732672270307,2.24,231.93,231.85,7.3344]
[1732672270613,2.24,231.93,231.91,2.1566]
[1732672270814,2.24,231.93,231.85,7.3344]
[1732672271308,2.24,231.93,231.85,2.4478]
[1732672271508,2.24,231.93,231.84,17.1568642]
[1732672271911,2.24,231.93,231.79,2.482]
[1732672271912,2.24,231.93,231.8,17.1568642]
[1732672272508,2.24,231.93,231.72,17.1568642]
[1732672272509,19.3968642,231.93,231.72,17.1568642]
[1732672272719,17.1568642,231.89,231.72,17.1568642]
[1732672273011,7.3198,231.88,231.72,17.1568642]
[1732672273608,2.1572,231.86,231.76,19.3148642]
[1732672273812,7.3198,231.88,231.76,17.1568642]
[1732672274010,2.24,231.87,231.76,17.1568642]
[1732672274216,2.24,231.86,231.82,2.1575]
[1732672274418,2.24,231.85,231.82,2.1575]
[1732672274711,2.24,231.85,231.81,2.1576]
[1732672274915,2.24,231.85,231.76,17.1568642]
[1732672276211,5.0798,232.02,231.84,17.1568642]
[1732672276212,2.24,231.88,231.84,17.1568642]
[1732672276509,2.24,231.89,231.84,17.1568642]
[1732672278216,2.4542,232.01,231.84,17.1568642]
[1732672278417,2.24,232.0,231.84,17.1568642]
[1732672278617,2.24,232.0,231.85,7.6025]
[1732672278910,4.3959,232.0,231.85,7.6025]
[1732672279312,4.3959,232.0,231.89,2.1569]
[1732672279514,4.3959,232.0,231.85,7.6025]
[1732672280012,2.1559,232.0,231.92,2.1566]
[1732672280212,2.24,231.99,231.92,2.1566]
[1732672280416,17.1568642,232.1,231.92,17.1568642]
[1732672280616,2.24,232.07,231.92,17.1568642]
[1732672281114,2.1553,232.06,231.98,2.156]
[1732672281315,2.24,232.07,231.92,17.1568642]
[1732672281615,2.1555,232.04,231.97,2.1561]
[1732672283013,2.1554,232.06,231.99,2.156]
[1732672283213,2.24,232.07,231.92,17.1568642]
[1732672283416,2.24,232.07,231.96,17.1568642]
[1732672283919,2.24,232.07,232.03,2.1556]
[1732672284221,2.24,232.07,231.96,17.1568642]
[1732672286019,2.155,232.09,231.96,17.1568642]
[1732672286222,2.24,232.08,231.96,17.1568642]
[1732672287321,2.24,232.08,232.01,2.1558]
[1732672288018,2.457,232.12,231.96,17.1568642]
[1732672288218,2.24,232.11,231.97,7.0336]
[1732672288616,2.24,232.11,232.05,2.1554]
[1732672289325,2.24,232.11,232.03,2.1555]
[1732672289522,2.24,232.11,231.97,7.0336]
[1732672289723,2.24,232.11,231.92,17.1568642]
[1732672289925,2.1557,232.02,231.94,2.1564]
[1732672290222,2.24,232.01,231.88,17.1568642]
[1732672290422,2.24,232.0,231.86,4.636]
[1732672290720,2.24,231.99,231.84,17.1568642]
[1732672291127,2.1565,231.94,231.84,17.1568642]
[1732672291328,2.24,231.93,231.84,17.1568642]
[1732672291622,2.24,231.92,231.81,2.3792]
[1732672291827,2.24,231.91,231.81,2.3792]
[1732672292023,2.24,231.9,231.81,2.3792]
[1732672292425,2.24,231.9,231.83,2.1574]
[1732672294725,2.24,231.9,231.81,2.3792]
[1732672295522,2.24,231.9,231.8,17.1568642]
[1732672296231,2.24,231.9,231.8,19.29629402]
[1732672296432,2.4006,231.98,231.8,19.29629402]
[1732672296632,2.24,231.97,231.8,19.29629402]
[1732672297329,2.24,231.97,231.84,17.1568642]
[1732672297523,2.24,231.96,231.88,17.1568642]
[1732672298228,2.24,231.96,231.93,2.1565]
[1732672298530,2.24,231.96,231.88,17.1568642]
[1732672298834,2.24,231.96,231.9,2.1568]
[1732672299031,2.24,231.96,231.88,17.1568642]
[1732672299635,2.24,231.96,231.91,2.1567]
[1732672299933,2.24,231.96,231.88,17.1568642]
[1732672300133,6.9012,232.0,231.88,17.1568642]
[1732672300337,4.396,231.99,231.92,2.1566]
[1732672300637,2.24,231.99,231.88,17.1568642]
[1732672301032,4.3961,231.99,231.9,2.1568]
[1732672301231,2.24,231.99,231.84,17.1568642]
[1732672301535,2.1562,231.97,231.84,17.1568642]
[1732672301735,4.7513,231.99,231.85,2.14944954]
[1732672302231,4.7513,231.99,231.84,17.1568642]
[1732672302928,2.1561,231.98,231.84,17.1568642]
[1732672303731,2.1563,231.96,231.84,17.1568642]
[1732672303927,4.7513,231.99,231.81,4.69215954]
[1732672304131,17.1568642,231.98,231.8,17.1568642]
[1732672304327,17.1568642,231.94,231.72,17.1568642]
[1732672304536,2.24,231.93,231.72,17.1568642]
[1732672304833,2.1574,231.84,231.72,17.1568642]
[1732672305037,17.1568642,231.94,231.71,0.16088]
[1732672305038,2.24,231.83,231.71,0.16088]
[1732672305240,2.24,231.82,231.71,0.16088]
[1732672306238,2.24,231.82,231.71,2.30293045]
[1732672306627,2.24,231.82,231.71,2.33876803]
[1732672307134,2.24,231.82,231.77,2.158]
[1732672307329,2.24,231.82,231.72,17.1568642]
[1732672307731,2.24,231.81,231.76,2.1581]
[1732672308929,2.5297,231.88,231.76,17.1568642]
[1732672309135,2.24,231.87,231.76,17.1568642]
[1732672310132,2.24,231.87,231.8,17.1568642]
[1732672310638,2.24,231.87,231.85,2.1573]
[1732672311337,2.24,231.87,231.86,2.1572]
[1732672312133,33.64,231.95,231.86,2.1572]
[1732672312431,2.24,231.94,231.86,2.1572]
[1732672312633,4.3964,231.94,231.87,2.1571]
[1732672312835,4.3964,231.94,231.8,17.1568642]
[1732672313033,2.24,231.94,231.8,17.1568642]
[1732672313434,2.1565,231.93,231.85,2.1572]
[1732672313635,2.24,231.94,231.8,17.1568642]
[1732672314029,4.629,231.94,231.76,17.1568642]
[1732672314230,17.1568642,231.93,231.76,17.1568642]
[1732672314435,17.1568642,231.89,231.75,2.1582]
[1732672314637,7.2027,231.88,231.75,2.1582]
[1732672314936,2.1577,231.81,231.71,0.16088]
[1732672315135,2.24,231.8,231.71,0.16088]
[1732672316235,2.24,231.8,231.74,2.1582]
[1732672316437,2.24,231.8,231.71,0.16088]
[1732672316938,4.3977,231.8,231.72,2.1584]
[1732672317143,2.24,231.8,231.71,0.16088]
[1732672317642,2.158,231.77,231.71,0.16088]
[1732672318039,2.24,231.8,231.71,0.16088]
[1732672318242,17.1568642,231.85,231.71,0.16088]
[1732672318535,2.24,231.84,231.71,0.16088]
[1732672318740,2.1575,231.83,231.74,2.1582]
[1732672318935,2.1575,231.83,231.72,17.1568642]
[1732672319137,4.9627,231.88,231.72,17.1568642]
[1732672319332,2.1572,231.86,231.72,17.1568642]
[1732672319533,17.1568642,231.85,231.71,0.16088]
[1732672320943,2.1578,231.8,231.72,2.1584]
[1732672321142,2.24,231.79,231.71,0.16088]
[1732672321533,2.24,231.79,231.73,2.1584]
[1732672321739,2.24,231.79,231.71,0.16088]
[1732672322041,2.1575,231.83,231.76,2.1581]
[1732672322242,2.4525,231.84,231.74,17.1568642]
[1732672322445,2.24,231.82,231.74,17.1568642]
[1732672323041,2.24,231.82,231.74,19.28037106]
[1732672323240,2.24,231.82,231.8,2.1577]
[1732672323643,2.24,231.82,231.74,19.2922487]
[1732672324045,2.24,231.84,231.78,17.1568642]
[1732672324445,2.24,231.84,231.83,2.1575]
[1732672324647,2.4525,231.92,231.82,17.1568642]
[1732672324847,33.64,231.95,231.82,17.1568642]
[1732672324848,2.24,231.91,231.89,2.1569]
[1732672325046,2.24,231.94,231.86,17.1568642]
[1732672325242,2.24,231.93,231.86,17.1568642]
[1732672325444,2.24,231.94,231.89,2.1569]
[1732672325847,2.24,231.94,231.86,17.1568642]
[1732672326247,2.24,231.94,231.9,2.1568]
[1732672326844,2.24,231.98,231.9,17.1568642]
[1732672327038,2.3778,232.04,231.9,17.1568642]
[1732672327239,2.24,232.03,231.9,17.1568642]
[1732672327444,2.24,232.03,231.94,2.1563]
[1732672328148,2.24,232.03,231.9,17.1568642]
[1732672329149,2.24,232.03,231.93,2.1565]
[1732672329448,2.24,232.03,231.87,2.3385]
[1732672331349,2.1559,232.01,231.87,2.3385]
[1732672331550,2.24,232.03,231.87,2.3385]
[1732672331750,2.24,232.03,231.87,4.54262491]
[1732672332451,2.24,232.03,231.86,17.1568642]
[1732672332747,2.1561,231.98,231.9,2.1568]
[1732672332951,2.24,231.97,231.9,2.1568]
[1732672333151,2.24,231.97,231.88,2.14802933]
[1732672333454,2.24,231.97,231.89,2.1569]
[1732672333644,2.24,231.97,231.88,2.19186492]
[1732672333840,2.24,231.97,231.86,17.1568642]
[1732672334046,2.24,231.97,231.89,2.1569]
[1732672334252,2.24,231.97,231.86,19.31161544]
[1732672335153,2.24,231.97,231.93,2.1565]
[1732672335352,2.24,231.97,231.86,17.1568642]
[1732672336951,2.24,231.97,231.86,19.28640153]
[1732672338458,2.24,231.97,231.94,2.1564]
[1732672339051,2.24,231.97,231.93,2.1565]
[1732672339554,2.1564,231.95,231.88,2.157]
[1732672339749,2.24,231.97,231.87,2.17355209]
[1732672339954,2.24,231.97,231.82,17.1568642]
[1732672340255,4.3962,231.97,231.89,2.1568]
[1732672340450,2.24,231.97,231.86,17.1568642]
[1732672340647,2.24,231.97,231.87,2.16532432]
[1732672340855,2.24,231.97,231.9,17.1568642]
[1732672341049,2.3778,232.04,231.86,19.29780569]
[1732672341245,2.3161,232.06,231.94,17.1568642]
[1732672341446,17.1568642,232.16,231.98,17.1568642]
[1732672341651,2.24,232.09,231.98,17.1568642]
[1732672341853,2.24,232.09,232.03,2.1556]
[1732672342455,2.24,232.09,232.02,2.1557]
[1732672342855,17.1568642,232.16,231.98,19.27385442]
[1732672343151,2.1547,232.13,232.04,2.1554]
[1732672343653,2.24,232.15,232.04,2.1554]
[1732672343855,2.1548,232.12,232.04,2.1554]
[1732672346251,4.8147,232.19,231.98,19.3009174]
[1732672346548,2.24,232.18,232.02,17.1568642]
[1732672346946,4.3942,232.18,232.1,2.1549]
[1732672347355,2.24,232.18,232.02,17.1568642]
[1732672347551,2.1544,232.16,232.02,17.1568642]
[1732672348354,2.1544,232.16,232.09,2.155]
[1732672348559,4.8147,232.19,232.02,17.1568642]
[1732672348758,2.24,232.18,232.02,17.1568642]
[1732672349052,2.24,232.18,232.03,2.4536]
[1732672349253,4.3942,232.18,232.03,2.4536]
[1732672349551,4.3942,232.18,232.1,2.1549]
[1732672350555,4.3942,232.18,232.11,2.1548]
[1732672350856,4.3942,232.18,232.03,2.4536]
[1732672350857,2.1542,232.18,232.03,2.4536]
[1732672351050,2.24,232.17,232.06,17.1568642]
[1732672351252,2.24,232.18,232.06,17.1568642]
[1732672351548,4.731,232.26,232.05,2.24]
[1732672351549,4.731,232.26,232.1,17.1568642]
[1732672351754,2.24,232.25,232.1,17.1568642]
[1732672352048,2.24,232.25,232.11,4.8718]
[1732672352954,2.1536,232.24,232.17,2.1543]
[1732672353550,2.24,232.25,232.1,17.1568642]
[1732672353756,2.24,232.25,232.07,2.24]
[1732672354156,2.1539,232.22,232.07,2.24]
[1732672355159,2.24,232.25,232.06,17.1568642]
[1732672355356,17.1568642,232.24,232.06,17.1568642]
[1732672355660,17.1568642,232.2,231.98,19.3009174]
[1732672355857,2.24,232.19,231.98,19.3009174]
[1732672356152,2.155,232.1,232.02,2.1556]
[1732672356359,2.24,232.09,231.99,2.12673955]
[1732672356553,2.24,232.08,231.99,2.12673955]
[1732672356758,2.24,232.1,232.0,2.24]
[1732672356952,2.24,232.12,232.04,17.1568642]
[1732672357360,2.24,232.12,232.06,2.1553]
[1732672357658,2.24,232.12,232.04,17.1568642]
[1732672357860,2.24,232.12,232.06,2.1553]
[1732672358049,2.24,232.12,232.05,2.10258676]
[1732672358250,2.24,232.16,232.08,17.1568642]
[1732672358458,2.24,232.19,232.14,2.1545]
[1732672358851,2.24,232.19,232.08,17.1568642]
[1732672359254,2.24,232.19,232.12,2.1547]
[1732672359456,2.24,232.19,232.08,17.1568642]
[1732672359962,2.24,232.19,232.1,2.1549]
[1732672360261,2.24,232.19,232.08,17.1568642]
[1732672360457,2.24,232.19,232.12,2.1547]
[1732672360767,2.24,232.19,232.08,17.1568642]
[1732672361058,2.24,232.19,232.13,2.1547]
[1732672361453,2.24,232.19,232.08,17.1568642]
[1732672362461,2.1543,232.18,232.1,2.1549]